fUST/lending_fUST_20250220
["ID","MTS","AMOUNT","RATE_DAILY","PERIOD"]
[353654900,1739983836936,-500.0,0.00013861,2]
[353654901,1739983836944,-500.0,0.00013861,2]
[353654902,1739983836951,-500.0,0.00013861,2]
[353654903,1739983836961,-2654.55,0.00013861,2]
[353654904,1739983836970,-500.0,0.00013861,2]
[353654905,1739983836980,-282.55,0.00013861,2]
[353654906,1739983836989,-302.95,0.00013861,2]
[353654907,1739983836998,-500.0,0.00013861,2]
[353654908,1739983837008,-500.0,0.00013862,2]
[353654909,1739983837017,-500.0,0.00013862,2]
[353654910,1739983837029,-1922.79,0.00013863,2]
[353654911,1739983837039,-500.0,0.00013863,2]
[353654912,1739983837048,-642.50317501,0.00013863,2]
[353654913,1739983837058,-718.09,0.00013863,2]
[353654914,1739983837067,-500.0,0.00013863,2]
[353654915,1739983837078,-384.18179924,0.00013863,2]
[353654916,1739983837087,-302.9102537,0.00013863,2]
[353654917,1739983837097,-595.38,0.00013863,2]
[353654918,1739983837107,-500.0,0.00013863,2]
[353654919,1739983837117,-500.0,0.00013863,2]
[353654920,1739983837126,-500.0,0.00013863,2]
[353654921,1739983837136,-500.0,0.00013863,2]
[353654922,1739983837146,-500.0,0.00013863,2]
[353654923,1739983837156,-1401.31,0.00013863,2]
[353654924,1739983837166,-500.0,0.00013863,2]
[353654925,1739983837176,-500.0,0.00013863,2]
[353654926,1739983837185,-500.0,0.00013863,2]
[353654927,1739983837195,-500.0,0.00013863,2]
[353654928,1739983837205,-500.0,0.00013863,2]
[353654929,1739983837215,-500.0,0.00013863,2]
[353654930,1739983837226,-500.0,0.00013863,2]
[353654931,1739983837235,-416.77266261,0.00013863,2]
[353654932,1739983837245,-605.28,0.00013863,2]
[353654933,1739983837258,-500.0,0.00013863,2]
[353654934,1739983837268,-500.0,0.00013863,2]
[353654935,1739983837277,-500.0,0.00013943,2]
[353654936,1739983837287,-500.0,0.00013943,2]
[353654937,1739983837297,-500.0,0.00013943,2]
[353654938,1739983837306,-330.53,0.00013943,2]
[353654939,1739983837317,-500.0,0.00013943,2]
[353654941,1739983837327,-500.0,0.00013943,2]
[353654942,1739983837337,-500.0,0.00013943,2]
[353654943,1739983837346,-500.0,0.00013943,2]
[353654944,1739983837356,-500.0,0.00013943,2]
[353654945,1739983837366,-5383.32,0.00013943,2]
[353654946,1739983837377,-500.0,0.00013943,2]
[353654947,1739983837387,-500.0,0.00013943,2]
[353654948,1739983837397,-500.0,0.00013943,2]
[353654949,1739983837407,-716.08,0.00013944,2]
[353654951,1739983837418,-500.0,0.00013944,2]
[353654953,1739983837428,-208.74261271,0.00013944,2]
[353654955,1739983837438,-2654.55,0.00013944,2]
[353654957,1739983837447,-500.0,0.00013944,2]
[353654959,1739983837457,-358.82,0.00013944,2]
[353654960,1739983837467,-1922.79,0.00013945,2]
[353654962,1739983837476,-342.60586383,0.00013945,2]
[353654964,1739983837486,-718.09,0.00013945,2]
[353654966,1739983837495,-500.0,0.00013945,2]
[353654968,1739983837506,-500.0,0.00013945,2]
[353654970,1739983837515,-500.0,0.00013945,2]
[353654972,1739983837524,-500.0,0.00013945,2]
[353654974,1739983837534,-500.0,0.00013945,2]
[353654976,1739983837543,-500.0,0.00013945,2]
[353654978,1739983837552,-1401.31,0.00013945,2]
[353654980,1739983837562,-500.0,0.00013945,2]
[353654982,1739983837571,-500.0,0.00013945,2]
[353654984,1739983837581,-500.0,0.00013945,2]
[353654986,1739983837590,-500.0,0.00013945,2]
[353654988,1739983837600,-500.0,0.00013945,2]
[353654990,1739983837609,-500.0,0.00013945,2]
[353654992,1739983837618,-500.0,0.00013945,2]
[353654994,1739983837628,-605.28,0.00013945,2]
[353654995,1739983837637,-500.0,0.00013945,2]
[353654997,1739983837646,-500.0,0.00013945,2]
[353654999,1739983837655,-166.25322735,0.00014025,2]
[353655001,1739983837665,-500.0,0.00014025,2]
[353655002,1739983837675,-500.0,0.00014025,2]
[353655004,1739983837684,-370.12,0.00014025,2]
[353655006,1739983837694,-500.0,0.00014025,2]
[353655008,1739983837703,-500.0,0.00014025,2]
[353655010,1739983837713,-5383.32,0.00014025,2]
[353655012,1739983837722,-500.0,0.00014025,2]
[353655014,1739983837732,-442.32,0.00014025,2]
[353655016,1739983837741,-500.0,0.00014025,2]
[353655018,1739983837751,-500.0,0.00014026,2]
[353655019,1739983837761,-500.0,0.00014026,2]
[353655021,1739983837770,-500.0,0.00014026,2]
[353655023,1739983837779,-2654.55,0.00014026,2]
[353655025,1739983837788,-500.0,0.00014026,2]
[353655027,1739983837798,-1922.79,0.00014027,2]
[353655029,1739983837807,-718.09,0.00014027,2]
[353655031,1739983837816,-500.0,0.00014027,2]
[353655033,1739983837825,-500.0,0.00014027,2]
[353655035,1739983837835,-500.0,0.00014027,2]
[353655037,1739983837844,-500.0,0.00014027,2]
[353655039,1739983837853,-500.0,0.00014027,2]
[353655041,1739983837862,-500.0,0.00014027,2]
[353655043,1739983837871,-1401.31,0.00014027,2]
[353655045,1739983837881,-500.0,0.00014027,2]
[353655047,1739983837890,-500.0,0.00014027,2]
[353655049,1739983837899,-500.0,0.00014027,2]
[353655050,1739983837908,-500.0,0.00014027,2]
[353655052,1739983837917,-500.0,0.00014027,2]
[353655054,1739983837926,-500.0,0.00014027,2]
[353655057,1739983837937,-568.67,0.00014027,2]
[353655059,1739983837946,-605.28,0.00014027,2]
[353655061,1739983837957,-500.0,0.00014027,2]
[353655062,1739983837966,-500.0,0.00014027,2]
[353655064,1739983837976,-273.09137782,0.00014076,2]
[353655066,1739983837985,-500.0,0.00014106,2]
[353655068,1739983837995,-500.0,0.00014107,2]
[353655071,1739983838006,-500.0,0.00014107,2]
[353655073,1739983838015,-500.0,0.00014107,2]
[353655074,1739983838031,-5383.32,0.00014107,2]
[353655076,1739983838041,-500.0,0.00014107,2]
[353655079,1739983838051,-500.0,0.00014107,2]
[353655081,1739983838060,-500.0,0.00014108,2]
[353655082,1739983838071,-2654.55,0.00014108,2]
[353655083,1739983838081,-500.0,0.00014108,2]
[353655084,1739983838092,-1922.79,0.00014109,2]
[353655085,1739983838103,-718.09,0.00014109,2]
[353655086,1739983838114,-500.0,0.00014109,2]
[353655087,1739983838124,-500.0,0.00014109,2]
[353655088,1739983838134,-500.0,0.00014109,2]
[353655089,1739983838144,-500.0,0.00014109,2]
[353655090,1739983838155,-1401.31,0.00014109,2]
[353655091,1739983838165,-500.0,0.00014109,2]
[353655092,1739983838176,-500.0,0.00014109,2]
[353655093,1739983838186,-557.18736973,0.00014109,2]
[353655094,1739983838198,-500.0,0.00014109,2]
[353655095,1739983838208,-500.0,0.00014109,2]
[353655096,1739983838219,-500.0,0.00014109,2]
[353655097,1739983838229,-605.28,0.00014109,2]
[353655098,1739983838239,-500.0,0.00014109,2]
[353655099,1739983838248,-500.0,0.00014121,2]
[353655100,1739983838263,-151.04206937,0.00014121,2]
[353655101,1739983838274,-501.04723278,0.00014121,2]
[353655102,1739983838284,-151.03961228,0.00014121,2]
[353655103,1739983838294,-151.04296996,0.00014121,2]
[353655104,1739983838304,-500.0,0.00014152,2]
[353655105,1739983838314,-500.0,0.00014152,2]
[353655106,1739983838323,-500.0,0.00014152,2]
[353655107,1739983838333,-500.0,0.00014152,2]
[353655108,1739983838343,-500.0,0.00014152,2]
[353655109,1739983838353,-160.04457576,0.00014152,2]
[353655111,1739983838363,-151.04302045,0.00014152,2]
[353655113,1739983838374,-500.0,0.00014152,2]
[353655115,1739983838383,-500.39970858,0.00014186,2]
[353655117,1739983838393,-635.95312818,0.00014186,2]
[353655119,1739983838403,-500.0,0.00014186,2]
[353655121,1739983838411,-500.0,0.00014189,2]
[353655123,1739983838420,-586.18,0.00014189,2]
[353655125,1739983838429,-5383.32,0.00014189,2]
[353655127,1739983838439,-500.0,0.00014189,2]
[353655129,1739983838448,-500.0,0.00014189,2]
[353655131,1739983838458,-716.08,0.0001419,2]
[353655133,1739983838467,-2654.55,0.0001419,2]
[353655135,1739983838476,-437.62377949,0.0001419,2]
[353655137,1739983838485,-1922.79,0.00014191,2]
[353655139,1739983838495,-718.09,0.00014191,2]
[353655141,1739983838506,-500.0,0.00014191,2]
[353655143,1739983838516,-500.0,0.00014191,2]
[353655145,1739983838524,-500.0,0.00014191,2]
[353655147,1739983838533,-500.0,0.00014191,2]
[353655149,1739983838544,-1401.31,0.00014191,2]
[353655151,1739983838553,-500.0,0.00014191,2]
[353655153,1739983838563,-332.09,0.00014191,2]
[353655155,1739983838572,-500.0,0.00014191,2]
[353655157,1739983838582,-500.0,0.00014191,2]
[353655159,1739983838591,-500.0,0.00014191,2]
[353655161,1739983838601,-605.28,0.00014191,2]
[353655163,1739983838610,-500.0,0.00014191,2]
[353655165,1739983838620,-500.0,0.00014238,2]
[353655167,1739983838629,-500.0,0.00014247,2]
[353655169,1739983838638,-259.11098333,0.00014256,2]
[353655171,1739983838648,-500.0,0.00014271,2]
[353655173,1739983838658,-500.0,0.00014271,2]
[353655175,1739983838667,-500.0,0.00014271,2]
[353655177,1739983838677,-500.0,0.00014271,2]
[353655179,1739983838686,-5383.32,0.00014271,2]
[353655181,1739983838695,-500.0,0.00014271,2]
[353655183,1739983838705,-2654.55,0.00014272,2]
[353655185,1739983838715,-1922.79,0.00014273,2]
[353655187,1739983838724,-718.09,0.00014273,2]
[353655189,1739983838733,-500.0,0.00014273,2]
[353655191,1739983838743,-500.0,0.00014273,2]
[353655193,1739983838752,-500.0,0.00014273,2]
[353655195,1739983838764,-527.64,0.00014273,2]
[353655197,1739983838774,-1401.31,0.00014273,2]
[353655199,1739983838783,-500.0,0.00014273,2]
[353655201,1739983838793,-500.0,0.00014273,2]
[353655203,1739983838803,-500.0,0.00014273,2]
[353655205,1739983838812,-500.0,0.00014273,2]
[353655207,1739983838822,-605.28,0.00014273,2]
[353655209,1739983838832,-500.0,0.00014273,2]
[353655211,1739983838841,-179.67658215,0.00014336,2]
[353655213,1739983838851,-500.0,0.00014353,2]
[353655215,1739983838861,-5383.32,0.00014353,2]
[353655217,1739983838871,-500.0,0.00014353,2]
[353655219,1739983838881,-2654.55,0.00014355,2]
[353655221,1739983838891,-1922.79,0.00014356,2]
[353655223,1739983838901,-718.09,0.00014356,2]
[353655225,1739983838910,-500.0,0.00014356,2]
[353655227,1739983838919,-500.0,0.00014356,2]
[353655229,1739983838929,-500.0,0.00014356,2]
[353655231,1739983838938,-1401.31,0.00014356,2]
[353655233,1739983838948,-500.0,0.00014356,2]
[353655235,1739983838958,-500.0,0.00014356,2]
[353655237,1739983838968,-500.0,0.00014356,2]
[353655239,1739983838978,-500.0,0.00014356,2]
[353655241,1739983838987,-605.28,0.00014356,2]
[353655243,1739983838996,-500.0,0.00014356,2]
[353655245,1739983839006,-500.0,0.00014436,2]
[353655247,1739983839016,-5383.32,0.00014436,2]
[353655249,1739983839027,-500.0,0.00014436,2]
[353655251,1739983839038,-2654.55,0.00014437,2]
[353655253,1739983839047,-1922.79,0.00014438,2]
[353655255,1739983839057,-718.09,0.00014438,2]
[353655257,1739983839066,-500.0,0.00014438,2]
[353655259,1739983839077,-500.0,0.00014438,2]
[353655261,1739983839087,-500.0,0.00014438,2]
[353655263,1739983839096,-1401.31,0.00014438,2]
[353655265,1739983839108,-500.0,0.00014438,2]
[353655267,1739983839117,-500.0,0.00014438,2]
[353655269,1739983839128,-500.0,0.00014438,2]
[353655280,1739983839231,-500.0,0.00014438,2]
[353655282,1739983839241,-605.28,0.00014438,2]
[353655284,1739983839251,-500.0,0.00014438,2]
[353655286,1739983839262,-700.0,0.00014438,2]
[353655287,1739983839272,-500.0,0.00014518,2]
[353655289,1739983839281,-500.0,0.00014518,2]
[353655291,1739983839291,-500.0,0.00014518,2]
[353655293,1739983839300,-5383.32,0.00014518,2]
[353655294,1739983839310,-500.0,0.00014518,2]
[353655296,1739983839319,-2654.55,0.00014519,2]
[353655298,1739983839329,-1922.79,0.0001452,2]
[353655300,1739983839339,-718.09,0.0001452,2]
[353655302,1739983839348,-500.0,0.0001452,2]
[353655304,1739983839358,-500.0,0.0001452,2]
[353655306,1739983839367,-500.0,0.0001452,2]
[353655308,1739983839378,-1401.31,0.0001452,2]
[353655310,1739983839387,-542.54,0.0001452,2]
[353655312,1739983839397,-500.0,0.0001452,2]
[353655314,1739983839407,-500.0,0.0001452,2]
[353655316,1739983839416,-500.0,0.0001452,2]
[353655318,1739983839426,-605.28,0.0001452,2]
[353655320,1739983839435,-234.69419909,0.0001452,2]
[353655323,1739983839445,-500.0,0.000146,2]
[353655325,1739983839455,-5383.32,0.000146,2]
[353655327,1739983839464,-716.08,0.00014601,2]
[353655329,1739983839474,-2654.55,0.00014601,2]
[353655331,1739983839483,-1922.79,0.00014602,2]
[353655333,1739983839492,-718.09,0.00014602,2]
[353655334,1739983839503,-500.0,0.00014602,2]
[353655335,1739983839512,-500.0,0.00014602,2]
[353655336,1739983839521,-500.0,0.00014602,2]
[353655337,1739983839531,-1401.31,0.00014602,2]
[353655338,1739983839541,-432.45,0.00014602,2]
[353655339,1739983839551,-500.0,0.00014602,2]
[353655340,1739983839561,-500.0,0.00014602,2]
[353655341,1739983839571,-605.28,0.00014602,2]
[353655342,1739983839580,-7438.69753278,0.00014633,2]
[353655343,1739983839591,-500.77851559,0.00014669,2]
[353655344,1739983839601,-500.0,0.00014682,2]
[353655345,1739983839611,-5383.32,0.00014682,2]
[353655346,1739983839620,-500.0,0.00014683,2]
[353655347,1739983839629,-500.0,0.00014683,2]
[353655348,1739983839639,-2654.55,0.00014683,2]
[353655349,1739983839649,-1922.79,0.00014684,2]
[353655350,1739983839659,-718.09,0.00014684,2]
[353655351,1739983839668,-500.0,0.00014684,2]
[353655352,1739983839679,-500.0,0.00014684,2]
[353655353,1739983839690,-500.0,0.00014684,2]
[353655354,1739983839700,-1401.31,0.00014684,2]
[353655355,1739983839710,-500.0,0.00014684,2]
[353655356,1739983839720,-500.0,0.00014684,2]
[353655357,1739983839729,-605.28,0.00014684,2]
[353655358,1739983839739,-1000.0,0.000147,2]
[353655359,1739983839749,-500.0,0.000147,2]
[353655360,1739983839759,-1000.0,0.000147,2]
[353655361,1739983839769,-376.01183395,0.00014734,2]
[353655362,1739983839778,-714.245,0.0001475,2]
[353655363,1739983839787,-162.05,0.0001475,2]
[353655364,1739983839797,-500.0,0.00014764,2]
[353655365,1739983839807,-5383.32,0.00014764,2]
[353655366,1739983839816,-2654.55,0.00014766,2]
[353655367,1739983839825,-1922.79,0.00014767,2]
[353655368,1739983839834,-718.09,0.00014767,2]
[353655369,1739983839844,-500.0,0.00014767,2]
[353655370,1739983839854,-500.0,0.00014767,2]
[353655371,1739983839864,-500.0,0.00014767,2]
[353655372,1739983839874,-1401.31,0.00014767,2]
[353655373,1739983839883,-500.0,0.00014767,2]
[353655374,1739983839895,-500.0,0.00014767,2]
[353655375,1739983839905,-605.28,0.00014767,2]
[353655376,1739983839914,-500.0,0.00014795,2]
[353655377,1739983839923,-500.0,0.00014799,2]
[353655378,1739983839933,-500.0,0.00014799,2]
[353655379,1739983839943,-500.0,0.00014799,2]
[353655380,1739983839952,-500.0,0.00014799,2]
[353655381,1739983839962,-716.08,0.00014799,2]
[353655382,1739983839971,-716.08,0.00014799,2]
[353655383,1739983839981,-500.0,0.00014847,2]
[353655384,1739983839990,-5383.32,0.00014847,2]
[353655385,1739983840001,-716.08,0.00014848,2]
[353655386,1739983840012,-2654.55,0.00014848,2]
[353655387,1739983840023,-1922.79,0.00014849,2]
[353655388,1739983840038,-718.09,0.00014849,2]
[353655389,1739983840047,-500.0,0.00014849,2]
[353655390,1739983840058,-500.0,0.00014849,2]
[353655392,1739983840068,-500.0,0.00014849,2]
[353655394,1739983840079,-1401.31,0.00014849,2]
[353655396,1739983840089,-500.0,0.00014849,2]
[353655398,1739983840098,-430.05421895,0.00014849,2]
[353655400,1739983840219,-69.94578105,0.00014849,2]
[353655402,1739983840230,-605.28,0.00014849,2]
[353655404,1739983840240,-155.04415898,0.00014873,2]
[353655405,1739983840250,-160.04553107,0.00014873,2]
[353655407,1739983840262,-151.04211176,0.00014873,2]
[353655409,1739983840272,-160.04558471,0.00014873,2]
[353655411,1739983840281,-500.0,0.00014899,2]
[353655412,1739983840292,-198.59683243,0.00014899,2]
[353655413,1739983840304,-301.40316757,0.00014899,2]
[353655414,1739983840314,-601.7,0.00014899,2]
[353655416,1739983840324,-500.0,0.00014899,2]
[353655418,1739983840334,-500.0,0.00014899,2]
[353655420,1739983840344,-500.0,0.00014899,2]
[353655422,1739983840353,-13891.09034028,0.000149,2]
[353655483,1739983840933,-500.0,0.00013031,2]
[353655485,1739983840943,-404.16872163,0.00013031,2]
[353655486,1739983840952,-500.0,0.00013031,2]
[353655487,1739983840962,-500.0,0.00013031,2]
[353655488,1739983840973,-500.0,0.00013031,2]
[353655489,1739983840982,-500.0,0.00013031,2]
[353655490,1739983840991,-291.53080522,0.00013031,2]
[353655491,1739983841001,-500.0,0.00013031,2]
[353655492,1739983841011,-587.65678498,0.00013031,2]
[353655493,1739983841020,-500.0,0.00013031,2]
[353655494,1739983841032,-500.0,0.00013031,2]
[353655495,1739983841041,-500.0,0.00013031,2]
[353655496,1739983841051,-500.0,0.00013698,2]
[353655497,1739983841061,-500.0,0.00013698,2]
[353655498,1739983841070,-157.79115902,0.00013698,2]
[353655499,1739983841080,-500.0,0.00013698,2]
[353655500,1739983841090,-500.0,0.00013698,2]
[353655501,1739983841100,-500.0,0.00013778,2]
[353655502,1739983841111,-500.0,0.00013778,2]
[353655503,1739983841122,-828.29,0.00013779,2]
[353655504,1739983841131,-500.0,0.0001378,2]
[353655505,1739983841141,-500.0,0.0001378,2]
[353655506,1739983841242,-500.0,0.0001386,2]
[353655507,1739983841253,-828.29,0.00013861,2]
[353655508,1739983841263,-500.0,0.00013863,2]
[353655509,1739983841272,-500.0,0.00013943,2]
[353655510,1739983841281,-828.29,0.00013944,2]
[353655511,1739983841291,-500.0,0.00013945,2]
[353655512,1739983841301,-500.0,0.00014025,2]
[353655513,1739983841310,-828.29,0.00014026,2]
[353655514,1739983841319,-500.0,0.00014027,2]
[353655515,1739983841329,-500.0,0.00014107,2]
[353655516,1739983841338,-828.29,0.00014108,2]
[353655517,1739983841347,-500.0,0.00014109,2]
[353655519,1739983841357,-224.55,0.00014189,2]
[353655521,1739983841367,-828.29,0.0001419,2]
[353655523,1739983841376,-500.0,0.00014191,2]
[353655525,1739983841385,-500.0,0.00014273,2]
[353655527,1739983841395,-500.0,0.00014356,2]
[353655529,1739983841405,-500.0,0.00014438,2]
[353655531,1739983841414,-500.0,0.0001452,2]
[353655533,1739983841423,-56114.56252915,0.000149,2]
[353655536,1739983841436,-369022.85999757,0.000149,2]
[353655538,1739983841445,-500.0,0.00014929,2]
[353655540,1739983841455,-5383.32,0.00014929,2]
[353655542,1739983841463,-2654.55,0.0001493,2]
[353655544,1739983841472,-1922.79,0.00014931,2]
[353655546,1739983841482,-500.0,0.00014931,2]
[353655548,1739983841491,-500.0,0.00014931,2]
[353655550,1739983841502,-500.0,0.00014931,2]
[353655552,1739983841511,-1401.31,0.00014931,2]
[353655554,1739983841520,-500.0,0.00014931,2]
[353655556,1739983841529,-500.0,0.00014931,2]
[353655558,1739983841539,-605.28,0.00014931,2]
[353655560,1739983841549,-420.0,0.00015009,2]
[353655562,1739983841559,-500.0,0.00015011,2]
[353655563,1739983841568,-5383.32,0.00015011,2]
[353655566,1739983841578,-500.0,0.00015012,2]
[353655568,1739983841587,-2654.55,0.00015012,2]
[353655570,1739983841597,-1922.79,0.00015013,2]
[353655572,1739983841606,-500.0,0.00015013,2]
[353655574,1739983841615,-500.0,0.00015013,2]
[353655575,1739983841625,-500.0,0.00015013,2]
[353655578,1739983841634,-1401.31,0.00015013,2]
[353655580,1739983841643,-500.0,0.00015013,2]
[353655582,1739983841653,-500.0,0.00015013,2]
[353655584,1739983841662,-605.28,0.00015013,2]
[353655586,1739983841671,-259.11098332,0.00015067,2]
[353655587,1739983841681,-1475.44385068,0.00015076,2]
[353655588,1739983841690,-645.2,0.00015082,2]
[353655589,1739983841699,-164.9,0.00015093,2]
[353655590,1739983841708,-5383.32,0.00015093,2]
[353655591,1739983841718,-2654.55,0.00015094,2]
[353655592,1739983841727,-1922.79,0.00015095,2]
[353655593,1739983841737,-500.0,0.00015095,2]
[353655594,1739983841747,-584.0,0.00015095,2]
[353655595,1739983841757,-500.0,0.00015095,2]
[353655596,1739983841767,-1401.31,0.00015095,2]
[353655597,1739983841776,-500.0,0.00015095,2]
[353655598,1739983841786,-370.45,0.00015095,2]
[353655599,1739983841796,-605.28,0.00015095,2]
[353655600,1739983841806,-5383.32,0.00015175,2]
[353655601,1739983841815,-2654.55,0.00015176,2]
[353655602,1739983841825,-1922.79,0.00015178,2]
[353655603,1739983841834,-500.0,0.00015178,2]
[353655604,1739983841844,-500.0,0.00015178,2]
[353655605,1739983841854,-1401.31,0.00015178,2]
[353655606,1739983841863,-500.0,0.00015178,2]
[353655607,1739983841872,-605.28,0.00015178,2]
[353655608,1739983841881,-5383.32,0.00015258,2]
[353655609,1739983841890,-2654.55,0.00015259,2]
[353655610,1739983841899,-1922.79,0.0001526,2]
[353655611,1739983841909,-500.0,0.0001526,2]
[353655612,1739983841919,-500.0,0.0001526,2]
[353655614,1739983841930,-1401.31,0.0001526,2]
[353655616,1739983841941,-500.0,0.0001526,2]
[353655618,1739983841950,-605.28,0.0001526,2]
[353655620,1739983841959,-509.53175985,0.00015319,2]
[353655622,1739983841969,-5383.32,0.0001534,2]
[353655624,1739983841978,-2654.55,0.00015341,2]
[353655626,1739983841987,-1922.79,0.00015342,2]
[353655628,1739983841997,-500.0,0.00015342,2]
[353655630,1739983842007,-500.0,0.00015342,2]
[353655632,1739983842015,-1401.31,0.00015342,2]
[353655634,1739983842027,-500.0,0.00015342,2]
[353655636,1739983842038,-605.28,0.00015342,2]
[353655638,1739983842047,-509.53175985,0.00015419,2]
[353655640,1739983842057,-5383.32,0.00015422,2]
[353655641,1739983842066,-716.08,0.00015423,2]
[353655644,1739983842076,-2654.55,0.00015423,2]
[353655646,1739983842085,-1922.79,0.00015424,2]
[353655647,1739983842095,-500.0,0.00015424,2]
[353655649,1739983842104,-500.0,0.00015424,2]
[353655651,1739983842116,-1401.31,0.00015424,2]
[353655654,1739983842126,-500.0,0.00015424,2]
[353655656,1739983842135,-605.28,0.00015424,2]
[353655658,1739983842145,-5383.32,0.00015504,2]
[353655660,1739983842154,-2654.55,0.00015505,2]
[353655662,1739983842164,-1922.79,0.00015506,2]
[353655663,1739983842173,-476.36,0.00015506,2]
[353655666,1739983842183,-238.96,0.00015506,2]
[353655668,1739983842192,-1401.31,0.00015506,2]
[353655669,1739983842202,-585.07,0.00015506,2]
[353655671,1739983842212,-605.28,0.00015506,2]
[353655673,1739983842221,-509.53175985,0.00015519,2]
[353655676,1739983842231,-161.03294024,0.00015559,2]
[353655678,1739983842242,-161.03,0.00015559,2]
[353655680,1739983842257,-155.58545062,0.00015559,2]
[353655682,1739983842267,-155.58545062,0.00015559,2]
[353655684,1739983842277,-155.58545062,0.00015559,2]
[353655686,1739983842287,-155.58545062,0.00015559,2]
[353655688,1739983842296,-155.58,0.00015559,2]
[353655690,1739983842306,-5383.32,0.00015586,2]
[353655693,1739983842315,-2654.55,0.00015587,2]
[353655695,1739983842324,-1922.835521,0.00015589,2]
[353655697,1739983842333,-1401.43,0.00015589,2]
[353655699,1739983842343,-605.31,0.00015589,2]
[353655701,1739983842352,-509.53175985,0.00015619,2]
[353655703,1739983842362,-395.0,0.00015648,2]
[353655705,1739983842372,-395.0,0.00015648,2]
[353655707,1739983842381,-395.0,0.00015648,2]
[353655709,1739983842391,-395.0,0.00015648,2]
[353655711,1739983842400,-395.0,0.00015648,2]
[353655714,1739983842409,-395.0,0.00015648,2]
[353655716,1739983842419,-395.0,0.00015648,2]
[353655719,1739983842430,-395.0,0.00015648,2]
[353655721,1739983842439,-395.0,0.00015648,2]
[353655723,1739983842449,-395.0,0.00015648,2]
[353655725,1739983842457,-395.0,0.00015648,2]
[353655727,1739983842466,-395.0,0.00015648,2]
[353655729,1739983842477,-395.0,0.00015648,2]
[353655731,1739983842486,-395.0,0.00015648,2]
[353655734,1739983842495,-470.0,0.0001565,2]
[353655737,1739983842505,-470.0,0.0001565,2]
[353655740,1739983842514,-470.0,0.0001565,2]
[353655742,1739983842523,-470.0,0.0001565,2]
[353655744,1739983842532,-470.0,0.0001565,2]
[353655746,1739983842542,-470.0,0.0001565,2]
[353655748,1739983842551,-470.0,0.0001565,2]
[353655750,1739983842561,-470.0,0.0001565,2]
[353655752,1739983842571,-470.0,0.0001565,2]
[353655754,1739983842581,-470.0,0.0001565,2]
[353655756,1739983842591,-470.0,0.0001565,2]
[353655758,1739983842600,-470.0,0.0001565,2]
[353655760,1739983842609,-470.0,0.0001565,2]
[353655762,1739983842620,-470.0,0.0001565,2]
[353655764,1739983842629,-394.0,0.00015659,2]
[353655766,1739983842638,-394.0,0.00015659,2]
[353655768,1739983842647,-394.0,0.00015659,2]
[353655770,1739983842656,-394.0,0.00015659,2]
[353655772,1739983842666,-394.0,0.00015659,2]
[353655774,1739983842675,-394.0,0.00015659,2]